fUSD/lending_fUSD_20240506
["ID","MTS","AMOUNT","RATE_DAILY","PERIOD"]
[326492281,1715003432374,-301.90641716,0.00012156,2]
[326492282,1715003432385,-155.0,0.00012157,2]
[326492283,1715003432395,-155.0,0.00012158,2]
[326492284,1715003432404,-1500.0,0.00012159,2]
[326492285,1715003432415,-236.89456322,0.00012514,2]
[326492286,1715003432425,-685.13400425,0.00012514,2]
[326492287,1715003432435,-155.0,0.00012515,2]
[326492288,1715003432446,-320.81001839,0.00012516,2]
[326492289,1715003432455,-592.61,0.00012544,2]
[326492290,1715003432465,-4654.50314777,0.00012579,2]
[326492291,1715003432477,-1859.45332465,0.00012579,2]
[326492292,1715003432486,-2735.92,0.00012617,2]
[326492293,1715003432496,-405.7177,0.00012689,2]
[326492294,1715003432505,-151.79,0.00012735,2]
[326492295,1715003432515,-174.84052728,0.00012781,2]
[326492296,1715003432525,-689.44409652,0.00012781,2]
[326492297,1715003432534,-200.0,0.000128,4]
[326492298,1715003432544,-251.74141407,0.00012868,2]
[326492299,1715003432553,-2546.32060114,0.00012899,2]
[326492300,1715003432565,-256.269,0.00012899,2]
[326492301,1715003432577,-2307.44308,0.00012899,2]
[326492302,1715003432590,-4525.52975,0.00012899,2]
[326492303,1715003432601,-2996.87906385,0.00012899,2]
[326492304,1715003432611,-176.28665248,0.000129,2]
[326492305,1715003432620,-1000.0,0.000129,2]
[326492306,1715003432630,-500.0,0.000129,4]
[326492307,1715003432643,-313.32365092,0.000129,2]
[326492308,1715003432656,-157.66,0.0001299,2]
[326492309,1715003432666,-157.66,0.0001299,2]
[326492310,1715003432675,-157.66,0.0001299,2]
[326492311,1715003432684,-157.66,0.0001299,2]
[326492313,1715003432694,-157.66,0.0001299,2]
[326492315,1715003432704,-221.46750968,0.00012998,2]
[326492317,1715003432713,-613.40550781,0.00012998,2]
[326492319,1715003432723,-155.93762568,0.00012998,2]
[326492321,1715003432732,-275.56606053,0.00012998,2]
[326492323,1715003432742,-155.18013054,0.00012998,2]
[326492325,1715003432751,-162.07402568,0.00012998,2]
[326492327,1715003432760,-194.47654533,0.00012998,2]
[326492329,1715003432770,-155.37794955,0.00012998,2]
[326492331,1715003432780,-156.60468047,0.00012998,2]
[326492333,1715003432789,-179.7460414,0.00012998,2]
[326492573,1715003440219,-18.00530008,0.00012998,2]
[326492574,1715003440229,-271.05528453,0.00012998,2]
[326492575,1715003440670,-20.96782592,0.00012998,2]
[326492576,1715003440680,-203.43366109,0.00012998,2]
[326492577,1715003440689,-288.91580821,0.00012998,2]
[326492578,1715003440699,-209.1400429,0.00012998,2]
[326492579,1715003440709,-155.19087031,0.00012998,2]
[326492580,1715003440719,-162.68520801,0.00012998,2]
[326492581,1715003440728,-225.31627057,0.00012998,2]
[326492582,1715003440738,-309.54898546,0.00012998,2]
[326492583,1715003440748,-155.45655031,0.00012998,2]
[326492584,1715003440758,-155.0,0.00012998,2]
[326492585,1715003440768,-155.38655138,0.00012998,2]
[326492586,1715003440778,-155.35175922,0.00012998,2]
[326492587,1715003440787,-179.4750778,0.00012998,2]
[326492588,1715003440798,-155.11003247,0.00012998,2]
[326492589,1715003440808,-924.25022326,0.00012998,2]
[326492590,1715003440818,-155.49081521,0.00012998,2]
[326492591,1715003440828,-407.0825661,0.00012998,2]
[326492592,1715003440840,-155.0,0.00012998,2]
[326492593,1715003440849,-298.39421916,0.00012998,2]
[326492594,1715003440859,-167.68316704,0.00012998,2]
[326492595,1715003440869,-169.83166843,0.00012998,2]
[326492596,1715003440878,-1097.73873464,0.00012999,2]
[326492597,1715003440888,-40200.55571453,0.00013,2]
[326492598,1715003440899,-319.18,0.00013,2]
[326492599,1715003441174,-13528.39642634,0.00013,2]
[326492600,1715003441185,-60924.73515962,0.00013,2]
[326492601,1715003441198,-2185.16867197,0.00013,2]
[326492602,1715003441211,-825.93999993,0.00013,2]
[326492603,1715003441226,-6390.9,0.00013,2]
[326492604,1715003441242,-4094.81083067,0.00013,2]
[326492605,1715003441265,-309.3200002,0.00013,2]
[326492606,1715003441277,-31916.42580903,0.00013,2]
[326492607,1715003441288,-49025.5379091,0.00013,2]
[326492608,1715003441300,-19209.6,0.00013,2]
[326492609,1715003441314,-1917.982407,0.00013,2]
[326492610,1715003441325,-1764.42675971,0.00013,2]
[326492619,1715003444642,-586.95467805,0.000129,2]
[326492635,1715003447432,-1643.00391903,0.000129,2]
[326492636,1715003447443,-2334.38557779,0.000129,2]
[326492637,1715003447455,-360.7707375,0.000129,2]
[326492638,1715003447467,-5674.97838471,0.000129,2]
[326492639,1715003447476,-207.8230925,0.0001299,2]
[326492640,1715003447485,-155.0,0.00012998,2]
[326492641,1715003447495,-171.01945701,0.00012998,2]
[326492642,1715003447505,-166.20572849,0.00012999,2]
[326492643,1715003447515,-2423.09820086,0.00013,2]
[326492644,1715003447527,-1531.12993871,0.00013,2]
[326492645,1715003447539,-834.66901894,0.00013,2]
[326492646,1715003447550,-356.09699987,0.00013,2]
[326492647,1715003447562,-5328.8935,0.00013,2]
[326492648,1715003447573,-46277.4912,0.00013,2]
[326492649,1715003447725,-317751.87433601,0.00013,2]
[326492690,1715004635942,-216.39965525,0.00012601,2]
[326492691,1715004635952,-305.77744355,0.00012602,2]
[326492692,1715004635962,-77.8229012,0.00012603,2]
[326492695,1715004638423,-292.72639372,0.00012603,2]
[326492696,1715004638435,-187.82097201,0.00012604,2]
[326492697,1715004638446,-1710.96410363,0.00012741,2]
[326492699,1715004638457,-150.0,0.0001286,2]
[326492700,1715004638467,-725.7876,0.000129,2]
[326492702,1715004638478,-3234.5679,0.000129,2]
[326492703,1715004638487,-6015.31899148,0.000129,2]
[326492705,1715004638499,-363.3689,0.000129,2]
[326492707,1715004638511,-11563.79980852,0.000129,2]
[326492709,1715004638522,-176.28665247,0.000129,2]
[326492710,1715004638531,-653.2304,0.000129,2]
[326492712,1715004638542,-187.820972,0.000129,2]
[326492714,1715004638552,-2283.37533499,0.000129,2]
[326492715,1715004638562,-441.60066571,0.0001299,2]
[326492716,1715004638574,-550.01539164,0.0001299,2]
[326492742,1715004646025,-192.40599242,0.0001299,2]
[326492745,1715004646036,-157.66,0.0001299,2]
[326492748,1715004646046,-184.39684103,0.00012998,2]
[326492751,1715004646056,-239.96976669,0.00012998,2]
[326492768,1715004646393,-154.08356808,0.00012998,2]
[326492770,1715004646403,-155.15285508,0.00012998,2]
[326492771,1715004646414,-100.08679879,0.00012998,2]
[326492772,1715004646426,-121.16208271,0.00012998,2]
[326492773,1715004646436,-296.18578498,0.00012998,2]
[326492774,1715004646445,-155.61637897,0.00012998,2]
[326492775,1715004646456,-324.83465646,0.00012998,2]
[326492776,1715004646466,-155.77020411,0.00012998,2]
[326492777,1715004646475,-228.69089277,0.00012999,2]
[326492778,1715004646487,-16.76122488,0.00012999,2]
[326492779,1715004646497,-522.87870645,0.00012999,2]
[326492780,1715004646506,-895.95493135,0.00012999,2]
[326492781,1715004646515,-4975.40513732,0.00012999,2]
[326492782,1715004646526,-1798.07131388,0.00012999,2]
[326492783,1715004646538,-3980.3935488,0.00012999,2]
[326492784,1715004646547,-29999.99,0.00012999,2]
[326492785,1715004646556,-19999.99,0.00012999,2]
[326492786,1715004646566,-500.0,0.00012999,2]
[326492787,1715004646609,-4987.24,0.00012999,2]
[326492788,1715004646619,-57512.78764235,0.00013,2]
[326492791,1715004650539,-366.32688298,0.00012998,2]
[326492792,1715004650551,-2841.08016702,0.00013,2]
[326492793,1715004650563,-85592.85775534,0.00013,2]
[326492794,1715004650573,-102739.6363235,0.00013,2]
[326492795,1715004650584,-2851.17600405,0.00013,2]
[326492804,1715005825420,2116.91,0.00014959,14]
[326492805,1715005833087,-188.04429626,0.00012674,2]
[326492809,1715005833097,-166.96379572,0.000128,2]
[326492811,1715005833106,-156.5,0.0001287,2]
[326492813,1715005833116,-255.08101941,0.000129,2]
[326492814,1715005833693,-16.88068059,0.000129,2]
[326492815,1715005833708,-690.76430659,0.000129,2]
[326492816,1715005833720,-1291.9075021,0.000129,2]
[326492817,1715005833732,-15.2816094,0.000129,2]
[326492818,1715005833743,-157.67,0.0001299,2]
[326492819,1715005833753,-155.0,0.00012998,2]
[326492820,1715005833763,-374.15260488,0.00012999,2]
[326492821,1715005833774,-195.28492672,0.00012999,2]
[326492822,1715005833787,-1000.0,0.00012999,2]
[326492823,1715005833798,-1319.51937043,0.00013,2]
[326492839,1715005839060,-160.49400001,0.000127,2]
[326492840,1715005839070,-42025.34599999,0.00013,2]
[326492841,1715005839082,-907.87201028,0.00013,2]
[326492842,1715005839093,-17137.04296678,0.00013,2]
[326492843,1715005839106,-12603.56249998,0.00013,2]
[326492844,1715005840040,-773.29317375,0.00013,2]
[326492846,1715005840054,-630.32,0.00013,2]
[326492848,1715005840067,-5625.96,0.00013,2]
[326492849,1715005840919,-5403.02388051,0.00013,2]
[326492851,1715005840936,-1430.64039329,0.00013,2]
[326492861,1715005841560,-160.49399999,0.00012735,2]
[326492862,1715005841572,-1821.86030787,0.00013,2]
[326492863,1715005841591,-736.90510854,0.00013,2]
[326492864,1715005841605,-1562.39291835,0.00013,2]
[326492865,1715005841619,-1707.00138711,0.00013,2]
[326492866,1715005841632,-1500.0,0.00013,2]
[326492867,1715005841646,-3049.76858233,0.00013,2]
[326492868,1715005841659,-300.0,0.00013,2]
[326492885,1715005847526,-160.49399999,0.0001277,2]
[326492886,1715005847539,-395.50800001,0.00013,2]
[326492887,1715005847553,-10281.22319683,0.00013,2]
[326492888,1715005847568,-32703.71150358,0.00013,2]
[326492889,1715005847580,-40774.19476313,0.00013,2]
[326492890,1715005847591,-95780.49024382,0.00013,2]
[326492891,1715005847601,-2000.0,0.00013,2]
[326492892,1715005847611,-200.0,0.00013,2]
[326492893,1715005847620,-26649.17022687,0.00013,2]
[326492894,1715005847631,-289.87978023,0.00013,2]
[326492895,1715005847640,-3000.0,0.00013,2]
[326492896,1715005847650,-2321.24,0.00013,2]
[326492897,1715005847659,-151.79,0.000133,2]
[326492898,1715005847669,-248.57724372,0.000135,2]
[326492899,1715005847679,-666.57,0.00013636,2]
[326492900,1715005847689,-157.17,0.00013662,2]
[326492901,1715005847700,-2684.26,0.00013778,2]
[326492902,1715005847714,-150.0,0.00013864,2]
[326492903,1715005847724,-154.79,0.0001388,2]
[326492904,1715005847734,-222.15,0.00013926,2]
[326492905,1715005847745,-172.08,0.00014015,2]
[326492906,1715005847754,-212.26,0.00014352,2]
[326492907,1715005847764,-1997.95341805,0.00014722,2]
[326492908,1715005847774,-200.0,0.00014879,2]
[326492909,1715005847784,-1000.0,0.00014879,2]
[326492910,1715005847793,-500.0,0.00014879,2]
[326492911,1715005847804,-1000.0,0.00014879,2]
[326492912,1715005847813,-1000.0,0.0001488,2]
[326492913,1715005847823,-1000.0,0.0001488,2]
[326492914,1715005847832,-200.0,0.0001488,2]
[326492915,1715005847842,-1000.0,0.0001488,2]
[326492916,1715005847852,-1000.0,0.0001488,2]
[326492917,1715005847862,-1000.0,0.0001488,2]
[326492918,1715005847871,-1000.0,0.0001488,2]
[326492919,1715005847881,-1000.0,0.0001488,2]
[326492920,1715005847891,-200.0,0.0001488,2]
[326492921,1715005847900,-500.0,0.0001488,2]
[326492922,1715005847910,-156.68117027,0.0001496,2]
[326492923,1715005847919,-2067.41781312,0.0001496,2]
[326492924,1715005847934,-1011.0236757,0.0001496,2]
[326492925,1715005847944,-176.28665247,0.00014965,2]
[326492926,1715005847953,-313.32365092,0.00014965,2]
[326492927,1715005847963,-292.66169452,0.00014989,2]
[326492928,1715005847973,-5030.2602141,0.00014989,2]
[326492929,1715005847982,-1886.1608841,0.00014989,2]
[326492930,1715005847991,-27146.7037569,0.00014989,2]
[326492931,1715005848000,-352.3400464,0.00014989,2]
[326492932,1715005848010,-541.7853027,0.00014999,2]
[326492933,1715005848019,-5000.0,0.00015,2]
[326492934,1715005848028,-11588.89512219,0.00015,2]
[326492935,1715005848040,-1019.8590896,0.00015,2]
[326492936,1715005848233,-16266.34667293,0.00015,2]
[326492937,1715005848244,-9504.46025,0.00015,2]
[326492938,1715005848256,-2273.83887988,0.00015,2]
[326492939,1715005848268,-40569.5999854,0.00015,2]
[326492940,1715005848278,-171.28,0.00015065,2]
[326492941,1715005848288,-522.94,0.00015096,2]
[326492942,1715005848304,-17697.0,0.000152,3]
[326492943,1715005848320,-666.57,0.0001534,2]
[326492944,1715005848355,-17697.0,0.000154,5]
[326492945,1715005848364,-990.0,0.000156,2]
[326492946,1715005848375,-310.75433465,0.000159,2]
[326492970,1715007034563,-995.87545876,0.00011,2]
[326492973,1715007034576,-350.64493034,0.00011,2]
[326492976,1715007034587,-187.820972,0.00012156,2]
[326492980,1715007034596,-202.11649873,0.00012256,2]
[326492984,1715007034608,-28.07350127,0.00012256,2]
[326492986,1715007034618,-472.46622876,0.000129,2]
[326492988,1715007034629,-180.76417124,0.000129,2]
[326492990,1715007034639,-866.23582876,0.000129,2]
[326492993,1715007034651,-4654.44,0.000129,2]
[326492995,1715007034662,-408.79595264,0.000129,2]
[326492997,1715007034674,-5634.3280186,0.000129,2]
[326492999,1715007034684,-150.0,0.00012986,2]
[326493001,1715007034693,-188.08677187,0.00013,2]
[326493003,1715007034703,-179.98506405,0.00013,2]
[326493005,1715007034712,-6049.64015437,0.00013,2]
[326493007,1715007034724,-2933.91684557,0.00013,2]
[326493009,1715007034743,-566.55211337,0.00013,2]
[326493011,1715007034754,-1730.297936,0.00013,2]
[326493013,1715007034772,-900.37502554,0.00013,2]
[326493015,1715007034783,-1411.11896585,0.00013,2]
[326493061,1715007038706,-4113.98652589,0.00013,2]
[326493062,1715007046352,-10921.82576469,0.00013,2]
[326493064,1715007046362,-155.13321013,0.000136,2]
[326493066,1715007046372,-230.19,0.00013788,2]
[326493068,1715007046381,-169.81,0.000139,2]
[326493070,1715007046392,-1000.0,0.000145,2]
[326493072,1715007046401,-797.0,0.000145,2]
[326493073,1715007046410,-500.0,0.000149,2]
[326493075,1715007046420,-500.0,0.000149,2]
[326493076,1715007046429,-500.0,0.000149,2]
[326493077,1715007046438,-500.0,0.000149,2]
[326493078,1715007046447,-500.0,0.000149,2]
[326493079,1715007046457,-500.0,0.000149,2]
[326493080,1715007046466,-500.0,0.000149,2]
[326493081,1715007046476,-500.0,0.000149,2]
[326493082,1715007046486,-500.0,0.000149,2]
[326493083,1715007046496,-500.0,0.000149,2]
[326493084,1715007046505,-500.0,0.000149,2]
[326493085,1715007046514,-500.0,0.000149,2]
[326493086,1715007046524,-500.0,0.000149,2]
[326493087,1715007046533,-500.0,0.000149,2]
[326493088,1715007046542,-500.0,0.000149,2]
[326493089,1715007046556,-500.0,0.000149,2]
[326493090,1715007046565,-500.0,0.000149,2]
[326493091,1715007046577,-500.0,0.000149,2]
[326493092,1715007046588,-500.0,0.000149,2]
[326493093,1715007046597,-500.0,0.000149,2]
[326493094,1715007046607,-500.0,0.000149,2]
[326493095,1715007046617,-500.0,0.000149,2]
[326493096,1715007046626,-500.0,0.000149,2]
[326493097,1715007046635,-500.0,0.000149,2]
[326493098,1715007046645,-500.0,0.000149,2]
[326493099,1715007046654,-500.0,0.000149,2]
[326493100,1715007046664,-500.0,0.000149,2]
[326493101,1715007046674,-500.0,0.000149,2]
[326493102,1715007046684,-500.0,0.000149,2]
[326493103,1715007046693,-500.0,0.000149,2]
[326493104,1715007046702,-500.0,0.000149,2]
[326493105,1715007046711,-500.0,0.000149,2]
[326493106,1715007046721,-500.0,0.000149,2]
[326493107,1715007046730,-500.0,0.000149,2]
[326493108,1715007046741,-280.46,0.000149,2]
[326493109,1715007046752,-500.0,0.000149,2]
[326493110,1715007046761,-500.0,0.000149,2]
[326493111,1715007046771,-500.0,0.000149,2]
[326493112,1715007046780,-500.0,0.000149,2]
[326493113,1715007046790,-500.0,0.000149,2]
[326493114,1715007046799,-500.0,0.000149,2]
[326493115,1715007046809,-500.0,0.000149,2]
[326493116,1715007046818,-500.0,0.000149,2]
[326493118,1715007046828,-500.0,0.000149,2]
[326493120,1715007046837,-500.0,0.000149,2]
[326493122,1715007046848,-500.0,0.000149,2]
[326493124,1715007046858,-500.0,0.000149,2]
[326493126,1715007046867,-500.0,0.000149,2]
[326493128,1715007046876,-500.0,0.000149,2]
[326493129,1715007046886,-500.0,0.000149,2]
[326493130,1715007046895,-500.0,0.000149,2]
[326493131,1715007046904,-500.0,0.000149,2]
[326493132,1715007046913,-500.0,0.000149,2]
[326493133,1715007046923,-500.0,0.000149,2]
[326493134,1715007046932,-500.0,0.000149,2]
[326493135,1715007046942,-500.0,0.000149,2]
[326493136,1715007046951,-500.0,0.000149,2]
[326493137,1715007046961,-500.0,0.000149,2]
[326493138,1715007046970,-500.0,0.000149,2]
[326493139,1715007046979,-500.0,0.000149,2]
[326493140,1715007046995,-500.0,0.000149,2]
[326493141,1715007047005,-500.0,0.000149,2]
[326493142,1715007047015,-500.0,0.000149,2]
[326493143,1715007047027,-500.0,0.000149,2]
[326493144,1715007047036,-500.0,0.000149,2]
[326493145,1715007047045,-500.0,0.000149,2]
[326493146,1715007047055,-500.0,0.000149,2]
[326493147,1715007047066,-500.0,0.000149,2]
[326493148,1715007047076,-500.0,0.000149,2]
[326493149,1715007047085,-500.0,0.000149,2]
[326493150,1715007047094,-445.2,0.000149,2]
[326493151,1715007047103,-686.67611,0.000149,2]
[326493152,1715007047114,-5000.0,0.00015,2]
[326493153,1715007047123,-655.63212518,0.00015,2]
[326493154,1715007047133,-230.19,0.0001532,2]
[326493155,1715007047142,-200.0,0.00015326,2]
[326493156,1715007047152,-500.0,0.00015335,2]
[326493157,1715007047162,-234.2,0.0001547,2]
[326493158,1715007047171,-250.0,0.000155,2]
[326493159,1715007047180,-399.94,0.00015576,2]
[326493160,1715007047189,-5589.0,0.000156,2]
[326493161,1715007047198,-169.81,0.00015637,2]
[326493162,1715007047207,-200.0,0.00015772,2]
[326493163,1715007047216,-1000.0,0.00015772,2]
[326493164,1715007047225,-500.0,0.00015772,2]
[326493165,1715007047234,-200.0,0.00015772,2]
[326493166,1715007047246,-200.0,0.00015773,2]
[326493167,1715007047255,-200.0,0.00015773,2]
[326493168,1715007047264,-1000.0,0.00015773,2]
[326493169,1715007047274,-1000.0,0.00015773,2]
[326493170,1715007047283,-500.0,0.00015773,2]
[326493171,1715007047292,-500.0,0.00015773,2]
[326493172,1715007047301,-200.0,0.00015773,2]
[326493173,1715007047311,-167.39,0.00015831,2]
[326493174,1715007047320,-229.368357,0.0001589,2]
[326493175,1715007047330,-484.0,0.000159,2]
[326493176,1715007047339,-38613.81586143,0.000159,2]
[326493177,1715007047348,-3000.0,0.000159,2]
[326493178,1715007047357,-2324.2598369,0.00015945,2]
[326493179,1715007047366,-546.86937062,0.00015945,2]
[326493180,1715007047376,-3668.3975,0.00015956,2]
[326493181,1715007047385,-478.82,0.00016024,3]
[326493182,1715007047394,-27300.6608508,0.00016034,2]
[326493183,1715007047403,-7213.275982,0.00016045,2]
[326493184,1715007047414,-229.2153653,0.00016045,2]
[326493185,1715007047424,-6395.4019919,0.00016056,2]
[326493186,1715007047433,-150.0,0.00016144,2]
[326493187,1715007047443,-565.86627808,0.00016144,2]
[326493188,1715007047451,-212.26,0.00016145,2]
[326493189,1715007047460,-1000.0,0.00016207,2]
[326493190,1715007047470,-200.0,0.00016216,2]
[326493191,1715007047480,-1824.26,0.00016468,2]
[326493192,1715007047491,-414.63,0.00016468,2]
[326493193,1715007047501,-912.13,0.00016468,2]
[326493194,1715007047510,-1823.86,0.00016468,2]
[326493195,1715007047519,-829.07,0.00016468,2]
[326493196,1715007047528,-912.13,0.00016468,2]
[326493197,1715007047538,-414.63,0.00016468,2]
[326493198,1715007047547,-414.63,0.00016468,2]
[326493199,1715007047556,-414.63,0.00016468,2]
[326493200,1715007047565,-414.63,0.00016468,2]
[326493201,1715007047574,-912.13,0.00016468,2]
[326493202,1715007047586,-414.63,0.00016468,2]
[326493203,1715007047595,-912.13,0.00016468,2]
[326493204,1715007047604,-912.13,0.00016468,2]
[326493205,1715007047613,-409.51,0.00016468,2]
[326493206,1715007047623,-365.48,0.00016468,2]
[326493207,1715007047632,-912.13,0.00016623,2]
[326493208,1715007047641,-167.39,0.00016702,2]
[326493209,1715007047650,-229.368357,0.00016712,2]
[326493210,1715007047659,-175.46,0.00016712,2]
[326493211,1715007047668,-230.19,0.00016852,2]
[326493212,1715007047677,-1750.66992767,0.00017,2]
[326493213,1715007047686,-661.27543005,0.00017,2]
[326493214,1715007047696,-323.93670501,0.00017253,2]
[326493215,1715007047706,-169.81,0.00017375,2]
[326493216,1715007047717,-399.94,0.00017523,2]
[326493218,1715007047747,-229.368357,0.00017534,2]
[326493220,1715007047781,-167.39,0.00017573,2]
[326493222,1715007047799,-237.6894331,0.00017598,2]
[326493224,1715007047809,-6554.50985711,0.00017688,2]
[326493226,1715007047818,-1814.44377089,0.0001788,2]
[326493228,1715007047828,-1814.44377088,0.0001788,2]
[326493230,1715007047837,-212.26,0.00017939,2]
[326493232,1715007047846,-1250.0,0.00018,3]
[326493234,1715007047855,-155.0,0.00018,2]
[326493235,1715007047865,-1000.0,0.00018233,2]
[326493237,1715007047874,-1814.44377088,0.00018285,2]
[326493239,1715007047884,-229.368357,0.00018356,2]
[326493241,1715007047893,-230.19,0.00018384,2]
[326493243,1715007047903,-167.39,0.00018444,2]
[326493245,1715007047912,-150.0,0.00018523,2]
[326493247,1715007047921,-351.06,0.00018523,2]
[326493249,1715007047931,-150.0,0.00018523,2]
[326493251,1715007047941,-150.0,0.00018523,2]
[326493253,1715007047950,-583.26,0.00018527,2]
[326493255,1715007047959,-1413.335,0.00018751,2]
[326493257,1715007047968,-2329.598,0.00018751,2]
[326493259,1715007047977,-1017.42,0.00018751,2]
[326493261,1715007047987,-463.0,0.00018751,2]
[326493263,1715007047999,-549.014,0.00018751,2]
[326493265,1715007048009,-1229.625,0.00018751,2]
[326493268,1715007048037,-808.0,0.00018751,2]
[326493269,1715007048052,-438.0,0.00018751,2]
[326493271,1715007048065,-1786.0,0.00018751,2]
[326493272,1715007048078,-611.0,0.00018751,2]
[326493273,1715007048088,-209.0,0.00018751,2]
[326493274,1715007048097,-2450.0,0.00018751,2]
[326493275,1715007048107,-1477.0,0.00018751,2]
[326493276,1715007048118,-150.0,0.00018751,2]
[326493277,1715007048127,-421.0,0.00018751,2]
[326493278,1715007048136,-215.0,0.00018751,2]
[326493279,1715007048146,-1139.0,0.00018751,2]
[326493280,1715007048157,-1643.0,0.00018751,2]
[326493281,1715007048167,-444.0,0.00018751,2]
[326493282,1715007048176,-3141.634,0.00018751,2]
[326493283,1715007048186,-871.098,0.00018751,2]
[326493284,1715007048194,-2293.0,0.00018751,2]
[326493285,1715007048204,-318.78,0.00018751,2]
[326493286,1715007048213,-176.28665247,0.000189,2]
[326493287,1715007048223,-313.32365092,0.000189,2]
[326493288,1715007048232,-1783.88698042,0.000189,2]
[326493289,1715007048241,-189.70629741,0.00018999,2]
[326493290,1715007048252,-18217.88175811,0.00019,2]
[326493291,1715007048370,-18865.26983136,0.00019,2]
[326493292,1715007048382,-298.56134443,0.00019,2]
[326493293,1715007048393,-2553.583018,0.00019,2]
[326493294,1715007048405,-449.31599999,0.00019,2]
[326493295,1715007048665,-620.84316916,0.00019,2]
[326493296,1715007048676,-3234.79929208,0.00019,2]
[326493297,1715007048688,-622.06778806,0.00019,2]
[326493298,1715007049525,-121324.50200778,0.00019,2]
[326493299,1715007049535,-2476.38246621,0.00019,2]
[326493300,1715007049544,-151.0,0.00019,2]
[326493301,1715007049554,-151.0,0.00019,2]
[326493302,1715007049563,-151.0,0.00019,2]
[326493303,1715007049572,-151.0,0.00019,2]
[326493304,1715007049581,-169.81,0.00019112,2]
[326493305,1715007049592,-3047.0,0.00019178,2]
[326493306,1715007049601,-157.84,0.00019178,2]
[326493307,1715007049610,-162.25,0.00019178,2]
[326493308,1715007049620,-155.85,0.00019178,2]
[326493309,1715007049629,-229.368357,0.00019178,2]
[326493310,1715007049638,-1000.0,0.00019198,2]
[326493311,1715007049648,-261.87,0.00019345,2]
[326493312,1715007049657,-419.86,0.00019345,2]
[326493313,1715007049666,-150.0,0.00019345,2]
[326493314,1715007049676,-522.94,0.00019345,2]
[326493315,1715007049685,-419.86,0.00019345,2]
[326493316,1715007049695,-150.0,0.00019345,2]
[326493317,1715007049704,-150.0,0.00019345,2]
[326493318,1715007049715,-150.0,0.00019345,2]
[326493319,1715007049758,-163.12,0.00019345,2]
[326493320,1715007049846,-522.94,0.00019345,2]
[326493321,1715007049887,-522.94,0.00019345,2]
[326493322,1715007049897,-163.12,0.00019345,2]
[326493323,1715007049907,-351.06,0.00019345,2]
[326493324,1715007049919,-163.12,0.00019345,2]
[326493325,1715007049928,-351.06,0.00019345,2]
[326493326,1715007049938,-351.06,0.00019345,2]
[326493327,1715007049947,-522.94,0.00019345,2]
[326493328,1715007049956,-158.41549323,0.00019346,2]
[326493329,1715007049966,-1814.44377088,0.00019455,2]
[326493330,1715007049975,-399.94,0.0001947,2]
[326493331,1715007049984,-877.40238706,0.000195,2]
[326493332,1715007049995,-152.46,0.000195,2]
[326493333,1715007050004,-300.0,0.000195,2]
[326493334,1715007050014,-163.12,0.000195,2]
[326493335,1715007050023,-150.76,0.000195,2]
[326493336,1715007050032,-204.9,0.000195,2]
[326493337,1715007050041,-150.68,0.000195,2]
[326493338,1715007050052,-24207.68971272,0.0001971,2]
[326493339,1715007050061,-212.26,0.00019733,2]
[326493340,1715007050074,-167.57033928,0.00019783,2]
[326493341,1715007050083,-1783.88698041,0.00019865,2]